[Event "EYCC Open U14 2021"]
[Site "Tornelo"]
[Date "2021.10.15"]
[Round "1.8"]
[White "Tarhan, Adar"]
[Black "Aleksanyan, Davit"]
[Result "0-1"]
[ECO "C54"]
[WhiteElo "2208"]
[BlackElo "1795"]
[Annotator "NA"]
[PlyCount "107"]
[EventDate "2021.10.15"]
[EventType "swiss"]
[EventCountry "NET"]
[SourceTitle "playchess.com"]
[Source "ChessBase"]
[SourceQuality "1"]
[TimeControl "5400+30"]

1. e4 {[%emt 0:00:30]} e5 {[%emt 0:00:35]} 2. Nf3 {[%emt 0:00:14]} Nc6 {[%emt 0:00:04]} 3. Bc4 {[%emt 0:00:11]} Nf6 {[%emt 0:00:07]} 4. d3 {[%emt 0:00:49]} Bc5 {[%emt 0:00:09]} 5. c3 {[%emt 0:00:19]} d6 {[%emt 0:00:29]} 6. h3 {[%emt 0:00:36]} h6 {[%emt 0:00:06]} 7. b4 {[%emt 0:02:40]} Bb6 {[%emt 0:00:05]} 8. O-O {[%emt 0:00:36]} O-O {[%emt 0:00:05]} 9. a4 {[%emt 0:01:03]} a5 {[%emt 0:00:05]} 10. b5 {[%emt 0:00:40]} Ne7 {[%emt 0:00:09]} 11. Re1 {[%emt 0:03:14]} Ng6 {[%emt 0:01:57]} 12. Nbd2 {[%emt 0:04:19]} Nf4 {[%emt 0:02:26]} 13. Nf1 {[%emt 0:02:14]} N6h5 {[%emt 0:04:02]} 14. d4 $11 {[%emt 0:06:49]} Qf6 {[%emt 0:14:38]} 15. Ng3 {[%emt 0:05:24]} Nxg3 {[%emt 0:12:47]} 16. fxg3 {[%emt 0:00:27]} Be6 {[%emt 0:02:21]} 17. Bf1 {[%emt 0:05:31]} Ng6 {[%emt 0:05:14]} 18. Kh2 {[%emt 0:03:45]} Rad8 {[%emt 0:01:12]} 19. d5 {[%emt 0:13:50]} Bc8 {[%emt 0:00:30]} 20. Bd3 {[%emt 0:04:39]} Ne7 {[%emt 0:10:55]} 21. Rf1 {[%emt 0:17:52]} Qg6 {[%emt 0:03:51]} 22. g4 {[%emt 0:02:31]} Qh7 {[%emt 0:08:02]} 23. Qe2 {[%emt 0:09:26]} g5 {[%emt 0:03:52]} 24. Nd2 {[%emt 0:01:38]} Bc5 {[%emt 0:06:03]} 25. Nb3 {[%emt 0:01:50]} b6 {[%emt 0:00:20]} 26. Nxc5 {[%emt 0:00:43]} dxc5 {[%emt 0:00:08]} 27. Bb2 {[%emt 0:01:31]} f6 {[%emt 0:00:15]} 28. Rf3 {[%emt 0:00:21]} Ng6 {[%emt 0:00:07]} 29. Raf1 {[%emt 0:03:47]} Nf4 {[%emt 0:00:42]} 30. Qe3 {[%emt 0:01:19]} h5 {[%emt 0:01:02]} 31. gxh5 {[%emt 0:00:16]} Qxh5 {[%emt 0:00:04]} 32. Rg3 {[%emt 0:00:42]} Kf7 {[%emt 0:00:58]} 33. Bc2 {[%emt 0:01:17]} Rh8 {[%emt 0:03:30]} 34. Bd1 {[%emt 0:02:53]} Qh4 {[%emt 0:08:56]} 35. Kg1 {[%emt 0:00:23]} Bxh3 {[%emt 0:01:58]} 36. gxh3 {[%emt 0:01:41]} Nxh3+ {[%emt 0:00:53]} 37. Rxh3 {[%emt 0:01:02]} Qxh3 {[%emt 0:00:04]} 38. Qxh3 {[%emt 0:00:19]} Rxh3 {[%emt 0:00:04]} 39. c4 {[%emt 0:00:54]} Ke7 {[%emt 0:00:04]} 40. Bf3 {[%emt 0:00:10]} g4 {[%emt 0:00:17]} 41. Bg2 {[%emt 0:00:13]} Rb3 {[%emt 0:00:12]} 42. Rf2 {[%emt 0:00:40]} Rb4 {[%emt 0:00:28]} 43. Bf1 {[%emt 0:00:04]} Rxa4 {[%emt 0:00:04]} 44. Rh2 {[%emt 0:00:08]} Rf8 {[%emt 0:00:06]} 45. Rh4 {[%emt 0:00:23]} Rb4 {[%emt 0:00:10]} 46. Bc1 {[%emt 0:00:08]} Rb1 {[%emt 0:00:07]} 47. Be3 {[%emt 0:00:24]} a4 {[%emt 0:00:36]} 48. Rxg4 {[%emt 0:00:10]} a3 {[%emt 0:00:03]} 49. Bh6 {[%emt 0:00:16]} a2 {[%emt 0:00:35]} 50. Bxf8+ {[%emt 0:00:09]} Kxf8 {[%emt 0:00:03]} 51. Rg6 {[%emt 0:00:03]} Kf7 {[%emt 0:00:03]} 52. Rh6 {[%emt 0:00:04]} a1=Q {[%emt 0:00:04]} 53. Rh7+ {[%emt 0:00:06]} Kg6 {[%emt 0:00:02]} 54. Rxc7 {[%emt 0:00:03]} 0-1

[Event "EYCC Open U14 2021"]
[Site "Tornelo"]
[Date "2021.10.15"]
[Round "1.9"]
[White "Safarov, Deniel"]
[Black "Palczert, Matyas"]
[Result "0-1"]
[ECO "B43"]
[WhiteElo "1785"]
[BlackElo "2204"]
[Annotator "NA"]
[PlyCount "68"]
[EventDate "2021.10.15"]
[EventType "swiss"]
[EventCountry "NET"]
[SourceTitle "playchess.com"]
[Source "ChessBase"]
[SourceQuality "1"]
[TimeControl "5400+30"]

1. e4 {[%emt 0:00:30]} c5 {[%emt 0:00:40]} 2. Nf3 {[%emt 0:00:08]} e6 {[%emt 0:00:09]} 3. d4 {[%emt 0:00:23]} cxd4 {[%emt 0:00:16]} 4. Nxd4 {[%emt 0:00:13]} Nc6 {[%emt 0:00:12]} 5. Nc3 {[%emt 0:05:26]} Qc7 {[%emt 0:00:30]} 6. Nb3 {[%emt 0:00:28]} a6 {[%emt 0:01:24]} 7. Bd3 {[%emt 0:00:13]} Nf6 {[%emt 0:01:29]} 8. O-O {[%emt 0:00:13]} d6 {[%emt 0:02:42]} 9. f4 {[%emt 0:00:40]} Be7 {[%emt 0:02:13]} 10. Qf3 {[%emt 0:00:11]} O-O {[%emt 0:04:57]} 11. Be3 {[%emt 0:00:10]} Rb8 {[%emt 0:03:47]} 12. Kh1 {[%emt 0:00:25]} b5 {[%emt 0:00:47]} 13. Qh3 {[%emt 0:01:53]} h6 $11 {[%emt 0:03:24]} 14. Rf3 {[%emt 0:01:00]} b4 {[%emt 0:18:07]} 15. Ne2 {[%emt 0:02:26]} Rd8 {[%emt 0:08:21]} 16. Rg3 {[%emt 0:01:53]} Kf8 {[%emt 0:05:44]} 17. Rf1 {[%emt 0:02:38]} a5 {[%emt 0:11:39]} 18. e5 {[%emt 0:04:20]} dxe5 {[%emt 0:10:50]} 19. fxe5 {[%emt 0:00:35]} Nxe5 {[%emt 0:00:43]} 20. Bf4 {[%emt 0:18:34]} a4 {[%emt 0:05:10]} 21. Nbd4 {[%emt 0:01:58]} Rd5 {[%emt 0:04:35]} 22. Re3 {[%emt 0:17:44]} Bd7 {[%emt 0:02:44]} 23. Bxh6 {[%emt 0:03:10]} Neg4 {[%emt 0:03:18]} 24. Bf4 {[%emt 0:14:10]} Bd6 {[%emt 0:01:45]} 25. Qg3 {[%emt 0:08:29]} Nxe3 {[%emt 0:01:39]} 26. Qxe3 {[%emt 0:00:10]} e5 {[%emt 0:02:55]} 27. Nf5 {[%emt 0:03:06]} Bxf5 {[%emt 0:00:59]} 28. Bxf5 {[%emt 0:00:14]} exf4 {[%emt 0:00:18]} 29. Qh3 {[%emt 0:00:04]} Kg8 {[%emt 0:00:25]} 30. Bd3 {[%emt 0:00:24]} Rh5 {[%emt 0:00:34]} 31. Qf3 {[%emt 0:00:05]} Qb7 {[%emt 0:00:41]} 32. Nxf4 {[%emt 0:00:32]} Qxf3 {[%emt 0:00:10]} 33. Rxf3 {[%emt 0:00:03]} Bxf4 {[%emt 0:00:09]} 34. Rxf4 {[%emt 0:00:03]} Re5 {[%emt 0:00:20]} 0-1

[Event "EYCC Open U14 2021"]
[Site "Tornelo"]
[Date "2021.10.15"]
[Round "1.10"]
[White "Zlatkov, Anton"]
[Black "Seyid, Huseyn"]
[Result "1-0"]
[ECO "B14"]
[WhiteElo "2154"]
[BlackElo "1781"]
[Annotator "NA"]
[PlyCount "100"]
[EventDate "2021.10.15"]
[EventType "swiss"]
[EventCountry "NET"]
[SourceTitle "playchess.com"]
[Source "ChessBase"]
[SourceQuality "1"]
[TimeControl "5400+30"]

1. e4 {[%emt 0:00:30]} c6 {[%emt 0:00:35]} 2. d4 {[%emt 0:00:18]} d5 {[%emt 0:00:04]} 3. exd5 {[%emt 0:00:39]} cxd5 {[%emt 0:00:02]} 4. c4 {[%emt 0:00:21]} Nf6 {[%emt 0:00:05]} 5. Nc3 {[%emt 0:00:28]} g6 {[%emt 0:00:10]} 6. Qb3 {[%emt 0:00:37]} Bg7 {[%emt 0:00:53]} 7. cxd5 {[%emt 0:00:15]} O-O {[%emt 0:00:03]} 8. Be2 {[%emt 0:01:36]} Na6 {[%emt 0:00:05]} 9. Bf3 {[%emt 0:00:44]} Qb6 {[%emt 0:00:11]} 10. Qxb6 {[%emt 0:00:36]} axb6 {[%emt 0:00:04]} 11. Nge2 {[%emt 0:03:31]} Nb4 {[%emt 0:00:03]} 12. O-O {[%emt 0:00:13]} Rd8 {[%emt 0:00:04]} 13. d6 {[%emt 0:02:59]} Rxd6 {[%emt 0:00:05]} 14. Bf4 {[%emt 0:02:04]} Rd7 {[%emt 0:00:03]} 15. Rfd1 {[%emt 0:02:58]} Nfd5 {[%emt 0:00:49]} 16. Nxd5 {[%emt 0:05:53]} Nxd5 {[%emt 0:00:04]} 17. Bxd5 {[%emt 0:01:21]} Rxd5 {[%emt 0:00:04]} 18. Rac1 {[%emt 0:03:09]} Bf5 {[%emt 0:09:36]} 19. f3 {[%emt 0:11:21]} h5 {[%emt 0:02:32]} 20. h3 {[%emt 0:11:35]} Bf6 {[%emt 0:13:40]} 21. g4 {[%emt 0:02:05]} hxg4 {[%emt 0:00:34]} 22. hxg4 {[%emt 0:00:08]} Be6 {[%emt 0:07:19]} 23. a3 {[%emt 0:03:58]} Rb5 {[%emt 0:22:34]} 24. Rd2 {[%emt 0:03:21]} Rb3 {[%emt 0:16:42]} 25. Kf2 {[%emt 0:04:17]} g5 {[%emt 0:09:56]} 26. Be3 {[%emt 0:04:27]} Bd5 {[%emt 0:06:49]} 27. Nc3 {[%emt 0:01:52]} Rd8 {[%emt 0:03:47]} 28. Ne4 {[%emt 0:02:10]} Kg7 {[%emt 0:03:06]} 29. Rh1 {[%emt 0:13:52]} Kg6 {[%emt 0:04:11]} 30. Rh5 {[%emt 0:01:15]} Bxe4 {[%emt 0:00:07]} 31. fxe4 {[%emt 0:00:38]} e5 {[%emt 0:01:05]} 32. d5 {[%emt 0:01:07]} Be7 {[%emt 0:00:18]} 33. Rc2 {[%emt 0:01:31]} f6 {[%emt 0:00:36]} 34. Rh3 {[%emt 0:05:31]} Bc5 {[%emt 0:00:26]} 35. Re2 {[%emt 0:01:24]} Rc8 {[%emt 0:00:39]} 36. Rf3 {[%emt 0:02:27]} Bxe3+ {[%emt 0:00:37]} 37. Rfxe3 {[%emt 0:00:09]} Rxe3 {[%emt 0:00:03]} 38. Kxe3 {[%emt 0:01:57]} Rc1 {[%emt 0:00:46]} 39. Kd3 {[%emt 0:02:25]} Rg1 {[%emt 0:00:22]} 40. Kc4 {[%emt 0:00:20]} Rg3 {[%emt 0:00:33]} 41. b4 {[%emt 0:01:01]} Rxa3 {[%emt 0:00:39]} 42. Kb5 {[%emt 0:00:18]} Kf7 {[%emt 0:00:25]} 43. Kxb6 {[%emt 0:02:22]} Rb3 {[%emt 0:00:05]} 44. b5 {[%emt 0:00:07]} Rb4 {[%emt 0:00:09]} 45. Rc2 {[%emt 0:01:49]} Ke7 {[%emt 0:00:20]} 46. Kc7 {[%emt 0:00:57]} Rxe4 {[%emt 0:01:21]} 47. d6+ {[%emt 0:00:14]} Ke6 {[%emt 0:00:04]} 48. d7 {[%emt 0:00:22]} Rd4 {[%emt 0:00:21]} 49. d8=Q {[%emt 0:00:08]} Rxd8 {[%emt 0:00:01]} 50. Kxd8 {[%emt 0:00:07]} f5 {[%emt 0:00:02]} 1-0

[Event "EYCC Open U14 2021"]
[Site "Tornelo"]
[Date "2021.10.15"]
[Round "1.11"]
[White "Gasparyan, Erik R."]
[Black "Kanov, Nikola"]
[Result "1-0"]
[ECO "A37"]
[WhiteElo "1777"]
[BlackElo "2150"]
[Annotator "NA"]
[PlyCount "107"]
[EventDate "2021.10.15"]
[EventType "swiss"]
[EventCountry "NET"]
[SourceTitle "playchess.com"]
[Source "ChessBase"]
[SourceQuality "1"]
[TimeControl "5400+30"]

1. Nf3 {[%emt 0:00:30]} c5 {[%emt 0:00:45]} 2. g3 {[%emt 0:00:18]} g6 {[%emt 0:00:14]} 3. Bg2 {[%emt 0:00:25]} Bg7 {[%emt 0:00:15]} 4. O-O {[%emt 0:00:08]} Nc6 {[%emt 0:00:12]} 5. c4 {[%emt 0:00:40]} Nh6 {[%emt 0:00:33]} 6. Nc3 {[%emt 0:01:12]} Nf5 {[%emt 0:00:48]} 7. d3 {[%emt 0:01:22]} O-O {[%emt 0:00:18]} 8. Bd2 {[%emt 0:01:01]} d6 {[%emt 0:00:29]} 9. Rb1 {[%emt 0:00:16]} Rb8 {[%emt 0:00:41]} 10. a3 {[%emt 0:00:16]} b6 {[%emt 0:00:30]} 11. b4 {[%emt 0:01:56]} Bb7 {[%emt 0:00:36]} 12. b5 {[%emt 0:01:36]} Ne5 {[%emt 0:03:35]} 13. Nxe5 {[%emt 0:01:12]} dxe5 {[%emt 0:00:44]} 14. a4 {[%emt 0:01:18]} Qd7 {[%emt 0:05:10]} 15. a5 {[%emt 0:02:05]} Bxg2 {[%emt 0:04:26]} 16. Kxg2 {[%emt 0:00:13]} Qb7+ {[%emt 0:02:49]} 17. Kg1 {[%emt 0:00:54]} Rfd8 {[%emt 0:03:15]} 18. Ra1 {[%emt 0:00:54]} e4 {[%emt 0:03:23]} 19. Nxe4 {[%emt 0:14:36]} Bxa1 {[%emt 0:01:06]} 20. Qxa1 {[%emt 0:00:02]} Nd4 {[%emt 0:00:33]} 21. Qd1 {[%emt 0:00:03]} f5 {[%emt 0:02:17]} 22. Nc3 {[%emt 0:00:20]} e5 {[%emt 0:32:35]} 23. Bg5 {[%emt 0:02:50]} Rd6 {[%emt 0:01:13]} 24. e4 {[%emt 0:10:47]} Rf8 {[%emt 0:19:28]} 25. f4 {[%emt 0:03:47]} exf4 {[%emt 0:09:44]} 26. Bxf4 {[%emt 0:09:24]} Re6 {[%emt 0:00:33]} 27. e5 {[%emt 0:02:22]} Rfe8 {[%emt 0:02:23]} 28. a6 {[%emt 0:02:50]} Qg7 {[%emt 0:00:50]} 29. Qd2 {[%emt 0:01:32]} g5 {[%emt 0:02:01]} 30. Bxg5 {[%emt 0:00:25]} Rxe5 {[%emt 0:00:13]} 31. Nd5 {[%emt 0:00:40]} R8e6 {[%emt 0:03:24]} 32. Be3 {[%emt 0:05:02]} Qg4 {[%emt 0:00:44]} 33. Qf2 {[%emt 0:02:00]} f4 {[%emt 0:00:34]} 34. Bxd4 {[%emt 0:00:27]} Re2 {[%emt 0:00:33]} 35. Qxf4 {[%emt 0:00:24]} Qxf4 {[%emt 0:00:22]} 36. Nxf4 {[%emt 0:00:03]} cxd4 {[%emt 0:00:26]} 37. Nxe6 {[%emt 0:00:01]} Rxe6 {[%emt 0:00:06]} 38. Rf4 {[%emt 0:00:01]} Rd6 {[%emt 0:00:23]} 39. Kf2 {[%emt 0:00:02]} Kg7 {[%emt 0:00:11]} 40. Kf3 {[%emt 0:00:01]} Rd7 {[%emt 0:00:15]} 41. Ke4 {[%emt 0:00:05]} Kg6 {[%emt 0:01:02]} 42. Ke5 {[%emt 0:00:06]} Kg5 {[%emt 0:00:08]} 43. h4+ {[%emt 0:00:06]} Kh5 {[%emt 0:00:10]} 44. Rxd4 {[%emt 0:00:02]} Rg7 {[%emt 0:00:08]} 45. Re4 {[%emt 0:00:13]} Rxg3 {[%emt 0:00:30]} 46. d4 {[%emt 0:00:01]} Rg8 {[%emt 0:00:37]} 47. d5 {[%emt 0:00:02]} Re8+ {[%emt 0:00:04]} 48. Kd4 {[%emt 0:00:02]} Rd8 {[%emt 0:00:04]} 49. Re7 {[%emt 0:00:01]} h6 {[%emt 0:00:09]} 50. Rxa7 {[%emt 0:00:02]} Kxh4 {[%emt 0:00:01]} 51. Rb7 {[%emt 0:00:02]} h5 {[%emt 0:00:14]} 52. a7 {[%emt 0:00:01]} Ra8 {[%emt 0:00:05]} 53. d6 {[%emt 0:00:01]} Kg3 {[%emt 0:00:05]} 54. d7 {[%emt 0:00:01]} 1-0

[Event "EYCC Open U14 2021"]
[Site "Tornelo"]
[Date "2021.10.15"]
[Round "1.12"]
[White "Lavrencic, Matic"]
[Black "Nemsadze, Daviti"]
[Result "1-0"]
[ECO "B67"]
[WhiteElo "2149"]
[BlackElo "1744"]
[Annotator "NA"]
[PlyCount "113"]
[EventDate "2021.10.15"]
[EventType "swiss"]
[EventCountry "NET"]
[SourceTitle "playchess.com"]
[Source "ChessBase"]
[SourceQuality "1"]
[TimeControl "5400+30"]

1. e4 {[%emt 0:00:30]} c5 {[%emt 0:00:37]} 2. Nf3 {[%emt 0:00:05]} d6 {[%emt 0:00:05]} 3. d4 {[%emt 0:00:07]} cxd4 {[%emt 0:00:05]} 4. Nxd4 {[%emt 0:00:03]} Nf6 {[%emt 0:00:06]} 5. Nc3 {[%emt 0:00:04]} Nc6 {[%emt 0:00:19]} 6. Bg5 {[%emt 0:00:17]} e6 {[%emt 0:00:06]} 7. Qd2 {[%emt 0:00:13]} a6 {[%emt 0:00:08]} 8. O-O-O {[%emt 0:00:09]} Bd7 {[%emt 0:00:13]} 9. f3 {[%emt 0:00:27]} Be7 {[%emt 0:01:14]} 10. Be3 {[%emt 0:00:17]} b5 {[%emt 0:00:20]} 11. Nxc6 {[%emt 0:00:07]} Bxc6 {[%emt 0:00:16]} 12. Kb1 {[%emt 0:00:22]} Qc7 {[%emt 0:09:41]} 13. g4 {[%emt 0:01:26]} b4 {[%emt 0:04:08]} 14. Ne2 {[%emt 0:00:05]} d5 {[%emt 0:00:07]} 15. g5 {[%emt 0:05:11]} Nd7 {[%emt 0:00:40]} 16. Nd4 {[%emt 0:03:14]} Bb7 $16 {[%emt 0:04:14]} 17. exd5 {[%emt 0:01:23]} Bxd5 {[%emt 0:00:34]} 18. Bg2 {[%emt 0:06:28]} Nb6 {[%emt 0:02:44]} 19. Nf5 {[%emt 0:04:44]} Rd8 {[%emt 0:02:51]} 20. Qf2 {[%emt 0:02:05]} Na4 {[%emt 0:03:46]} 21. Nxg7+ {[%emt 0:01:40]} Kf8 {[%emt 0:00:32]} 22. Nh5 {[%emt 0:00:20]} Qc4 {[%emt 0:01:45]} 23. b3 {[%emt 0:00:06]} Nc3+ {[%emt 0:00:05]} 24. Ka1 {[%emt 0:02:08]} Nxd1 {[%emt 0:02:03]} 25. Rxd1 {[%emt 0:00:05]} Qc6 {[%emt 0:01:32]} 26. Bd4 {[%emt 0:00:41]} Rg8 {[%emt 0:00:12]} 27. Nf6 {[%emt 0:00:04]} Bxf6 {[%emt 0:02:08]} 28. Bxf6 {[%emt 0:00:05]} Rc8 {[%emt 0:00:40]} 29. Qd4 {[%emt 0:02:00]} a5 {[%emt 0:01:34]} 30. Qe3 {[%emt 0:13:20]} Qxc2 {[%emt 0:00:57]} 31. Rxd5 {[%emt 0:00:20]} Rg6 {[%emt 0:02:09]} 32. Rd7 {[%emt 0:02:58]} Ke8 {[%emt 0:17:22]} 33. Qd2 {[%emt 0:01:32]} Qc1+ {[%emt 0:02:34]} 34. Qxc1 {[%emt 0:00:06]} Rxc1+ {[%emt 0:00:02]} 35. Kb2 {[%emt 0:00:03]} Kxd7 {[%emt 0:00:05]} 36. Kxc1 {[%emt 0:00:04]} h6 {[%emt 0:00:43]} 37. f4 {[%emt 0:01:25]} e5 {[%emt 0:05:07]} 38. f5 {[%emt 0:03:36]} Rxg5 {[%emt 0:00:08]} 39. Bxg5 {[%emt 0:00:05]} hxg5 {[%emt 0:00:02]} 40. Kd2 {[%emt 0:00:06]} Kd6 {[%emt 0:00:11]} 41. Ke3 {[%emt 0:00:18]} f6 {[%emt 0:00:05]} 42. h3 {[%emt 0:00:25]} Kc5 {[%emt 0:00:08]} 43. Ke4 {[%emt 0:00:11]} Kd6 {[%emt 0:00:04]} 44. Kd3 {[%emt 0:00:08]} Kc5 {[%emt 0:00:04]} 45. Be4 {[%emt 0:00:05]} Kb5 {[%emt 0:00:09]} 46. Ke3 {[%emt 0:03:04]} Kc5 {[%emt 0:00:28]} 47. Ba8 {[%emt 0:00:19]} Kd6 {[%emt 0:00:54]} 48. Kf3 {[%emt 0:00:26]} Kc5 {[%emt 0:14:07]} 49. Kg4 {[%emt 0:00:06]} Kd4 {[%emt 0:00:06]} 50. Kh5 {[%emt 0:00:03]} e4 {[%emt 0:00:14]} 51. Kg6 {[%emt 0:00:05]} e3 {[%emt 0:00:06]} 52. Bf3 {[%emt 0:00:06]} Kc3 {[%emt 0:00:52]} 53. Kxf6 {[%emt 0:00:10]} Kb2 {[%emt 0:00:04]} 54. Kxg5 {[%emt 0:00:15]} Kxa2 {[%emt 0:00:04]} 55. f6 {[%emt 0:00:07]} a4 {[%emt 0:00:02]} 56. f7 {[%emt 0:00:03]} axb3 {[%emt 0:00:03]} 57. f8=Q {[%emt 0:00:12]} 1-0

[Event "EYCC Open U14 2021"]
[Site "Tornelo"]
[Date "2021.10.15"]
[Round "2.1"]
[White "Khubukshanov, Erdem"]
[Black "Colev, Ivor"]
[Result "1-0"]
[ECO "B52"]
[WhiteElo "2373"]
[BlackElo "2004"]
[Annotator "ChessBase"]
[PlyCount "69"]
[EventDate "2021.10.15"]
[EventType "swiss"]
[EventCountry "NET"]
[SourceTitle "playchess.com"]
[Source "ChessBase"]
[SourceQuality "1"]
[TimeControl "5400+30"]

1. e4 {[%emt 0:00:30]} c5 {[%emt 0:00:34]} 2. Nf3 {[%emt 0:00:04]} d6 {[%emt 0:00:02]} 3. Bb5+ {[%emt 0:00:03]} Bd7 {[%emt 0:00:03]} 4. Bxd7+ {[%emt 0:00:04]} Nxd7 {[%emt 0:00:02]} 5. O-O {[%emt 0:00:15]} Ngf6 {[%emt 0:00:02]} 6. Qe2 {[%emt 0:00:05]} e6 {[%emt 0:00:02]} 7. c4 {[%emt 0:00:28]} Be7 {[%emt 0:00:05]} 8. d4 {[%emt 0:00:03]} cxd4 {[%emt 0:00:02]} 9. Nxd4 {[%emt 0:00:03]} O-O {[%emt 0:00:02]} 10. b3 {[%emt 0:00:24]} a6 {[%emt 0:00:02]} 11. Nc3 {[%emt 0:00:13]} Rc8 {[%emt 0:00:10]} 12. Bb2 {[%emt 0:00:04]} Qa5 {[%emt 0:00:05]} 13. Kh1 {[%emt 0:00:35]} Rfe8 {[%emt 0:04:00]} 14. f4 {[%emt 0:10:50]} Qh5 {[%emt 0:06:48]} 15. Nf3 {[%emt 0:07:42]} Bd8 {[%emt 0:18:36]} 16. Rad1 {[%emt 0:02:55]} Bc7 {[%emt 0:08:42]} 17. e5 {[%emt 0:05:40]} dxe5 {[%emt 0:07:46]} 18. g4 {[%emt 0:00:06]} Nxg4 {[%emt 0:13:01]} 19. Rxd7 {[%emt 0:00:08]} e4 {[%emt 0:06:38]} 20. Ng5 {[%emt 0:14:08]} e3 {[%emt 0:07:23]} 21. Rxf7 {[%emt 0:13:59]} h6 {[%emt 0:10:11]} 22. Nce4 {[%emt 0:01:37]} e5 {[%emt 0:00:34]} 23. Ng3 {[%emt 0:00:57]} Nf2+ {[%emt 0:03:46]} 24. Rxf2 {[%emt 0:02:41]} Qxe2 {[%emt 0:00:05]} 25. Rxe2 {[%emt 0:00:06]} hxg5 {[%emt 0:00:02]} 26. Rd7 {[%emt 0:00:04]} gxf4 {[%emt 0:00:16]} 27. Nf5 {[%emt 0:00:29]} Kh8 {[%emt 0:08:08]} 28. Rxg7 {[%emt 0:02:36]} Rg8 {[%emt 0:01:33]} 29. Rxc7 {[%emt 0:00:20]} Rxc7 {[%emt 0:02:48]} 30. Bxe5+ {[%emt 0:00:05]} Kh7 {[%emt 0:00:02]} 31. Bxc7 {[%emt 0:00:03]} f3 {[%emt 0:00:07]} 32. Rxe3 {[%emt 0:00:03]} f2 {[%emt 0:00:03]} 33. Rh3+ {[%emt 0:00:03]} Kg6 {[%emt 0:00:11]} 34. Ne3 {[%emt 0:00:03]} Rf8 {[%emt 0:00:39]} 35. Kg2 {[%emt 0:00:05]} 1-0

[Event "EYCC Open U14 2021"]
[Site "Tornelo"]
[Date "2021.10.15"]
[Round "2.2"]
[White "Zhugin, Nikolay"]
[Black "Klimkowski, Jan"]
[Result "1/2-1/2"]
[ECO "B94"]
[WhiteElo "2009"]
[BlackElo "2366"]
[Annotator "ChessBase"]
[PlyCount "89"]
[EventDate "2021.10.15"]
[EventType "swiss"]
[EventCountry "NET"]
[SourceTitle "playchess.com"]
[Source "ChessBase"]
[SourceQuality "1"]
[TimeControl "5400+30"]

1. e4 {[%emt 0:00:30]} c5 {[%emt 0:00:38]} 2. Nf3 {[%emt 0:00:07]} d6 {[%emt 0:00:09]} 3. d4 {[%emt 0:00:08]} cxd4 {[%emt 0:00:07]} 4. Nxd4 {[%emt 0:00:17]} Nf6 {[%emt 0:00:18]} 5. Nc3 {[%emt 0:00:08]} a6 {[%emt 0:00:11]} 6. Bg5 {[%emt 0:00:05]} Nbd7 {[%emt 0:00:33]} 7. f4 {[%emt 0:00:17]} Qc7 {[%emt 0:00:40]} 8. Qe2 {[%emt 0:00:48]} e5 {[%emt 0:01:12]} 9. Nf5 {[%emt 0:00:26]} b5 {[%emt 0:11:17]} 10. a3 {[%emt 0:04:44]} h6 {[%emt 0:04:41]} 11. Bxf6 {[%emt 0:00:15]} Nxf6 {[%emt 0:00:09]} 12. g4 {[%emt 0:05:17]} Bb7 {[%emt 0:04:46]} 13. Bg2 {[%emt 0:00:33]} g6 {[%emt 0:07:11]} 14. fxe5 {[%emt 0:00:20]} dxe5 {[%emt 0:00:09]} 15. Ne3 {[%emt 0:00:13]} Be7 {[%emt 0:02:04]} 16. O-O {[%emt 0:01:01]} O-O {[%emt 0:01:57]} 17. Kh1 {[%emt 0:00:15]} Rad8 {[%emt 0:07:10]} 18. Rf2 {[%emt 0:01:04]} Rd4 {[%emt 0:02:34]} 19. Ncd5 {[%emt 0:07:02]} Bxd5 {[%emt 0:01:07]} 20. Nxd5 {[%emt 0:01:38]} Nxd5 {[%emt 0:00:08]} 21. exd5 {[%emt 0:00:11]} Bh4 {[%emt 0:11:11]} 22. Rff1 {[%emt 0:04:33]} Bg5 {[%emt 0:02:22]} 23. Rad1 {[%emt 0:00:35]} Bf4 {[%emt 0:00:31]} 24. Rxd4 {[%emt 0:03:09]} exd4 {[%emt 0:00:13]} 25. h3 {[%emt 0:00:23]} Be5 {[%emt 0:04:32]} 26. Be4 {[%emt 0:01:19]} Qe7 {[%emt 0:04:09]} 27. Qf3 {[%emt 0:00:58]} Bd6 {[%emt 0:00:58]} 28. Bd3 {[%emt 0:01:21]} Qe5 {[%emt 0:02:15]} 29. Rf2 {[%emt 0:01:30]} Kg7 {[%emt 0:04:34]} 30. h4 {[%emt 0:05:04]} Qe1+ {[%emt 0:03:14]} 31. Kg2 {[%emt 0:01:26]} Qe5 {[%emt 0:00:13]} 32. h5 {[%emt 0:01:49]} Qg5 {[%emt 0:06:38]} 33. Qe4 {[%emt 0:01:04]} Qe5 {[%emt 0:01:37]} 34. Qxe5+ {[%emt 0:00:41]} Bxe5 {[%emt 0:00:11]} 35. hxg6 {[%emt 0:00:05]} fxg6 {[%emt 0:00:07]} 36. Re2 {[%emt 0:01:02]} Bd6 {[%emt 0:01:48]} 37. Re4 {[%emt 0:00:20]} Rf4 {[%emt 0:02:09]} 38. Rxf4 {[%emt 0:00:05]} Bxf4 {[%emt 0:00:21]} 39. b3 {[%emt 0:00:49]} Kf6 {[%emt 0:01:06]} 40. a4 {[%emt 0:00:19]} bxa4 {[%emt 0:00:25]} 41. bxa4 {[%emt 0:00:04]} a5 {[%emt 0:01:02]} 42. Kf3 {[%emt 0:00:04]} Bb8 {[%emt 0:02:42]} 43. Ke4 {[%emt 0:00:37]} Ba7 {[%emt 0:00:08]} 44. Be2 {[%emt 0:01:55]} Bb6 {[%emt 0:00:51]} 45. Bd1 {[%emt 0:00:06]} 1/2-1/2

[Event "EYCC Open U14 2021"]
[Site "Tornelo"]
[Date "2021.10.15"]
[Round "2.3"]
[White "Seemann, Jakub"]
[Black "Poupalos, Nikolaos"]
[Result "1-0"]
[ECO "E14"]
[WhiteElo "2299"]
[BlackElo "1964"]
[Annotator "NA"]
[PlyCount "61"]
[EventDate "2021.10.15"]
[EventType "swiss"]
[EventCountry "NET"]
[SourceTitle "playchess.com"]
[Source "ChessBase"]
[SourceQuality "1"]
[TimeControl "5400+30"]

1. d4 {[%emt 0:00:30]} Nf6 {[%emt 0:00:55]} 2. c4 {[%emt 0:00:10]} e6 {[%emt 0:00:06]} 3. Nf3 {[%emt 0:00:07]} Bb4+ {[%emt 0:07:51]} 4. Nbd2 {[%emt 0:00:12]} O-O {[%emt 0:00:18]} 5. a3 {[%emt 0:00:21]} Bxd2+ {[%emt 0:00:24]} 6. Qxd2 {[%emt 0:00:08]} a5 {[%emt 0:00:30]} 7. b3 {[%emt 0:01:38]} b6 {[%emt 0:04:00]} 8. e3 {[%emt 0:01:34]} Bb7 {[%emt 0:00:33]} 9. Be2 {[%emt 0:00:28]} d6 {[%emt 0:01:49]} 10. O-O {[%emt 0:00:13]} Nbd7 {[%emt 0:00:37]} 11. Bb2 {[%emt 0:00:14]} Qe7 {[%emt 0:03:39]} 12. Qc2 {[%emt 0:20:06]} c5 {[%emt 0:12:10]} 13. dxc5 {[%emt 0:01:57]} bxc5 {[%emt 0:02:21]} 14. Nd2 {[%emt 0:01:14]} e5 {[%emt 0:03:37]} 15. f3 {[%emt 0:01:56]} Rfe8 {[%emt 0:04:46]} 16. Rfd1 {[%emt 0:01:34]} Nf8 {[%emt 0:03:28]} 17. Nb1 {[%emt 0:02:44]} d5 $11 {[%emt 0:05:18]} 18. cxd5 {[%emt 0:02:51]} Nxd5 {[%emt 0:00:26]} 19. Bc1 {[%emt 0:00:58]} e4 {[%emt 0:24:31]} 20. Bc4 {[%emt 0:10:00]} Red8 {[%emt 0:06:09]} 21. f4 {[%emt 0:10:02]} Ne6 {[%emt 0:02:18]} 22. Re1 {[%emt 0:06:33]} f5 {[%emt 0:02:04]} 23. Bb2 {[%emt 0:01:55]} Kh8 {[%emt 0:00:46]} 24. Nd2 {[%emt 0:02:45]} Nexf4 {[%emt 0:04:03]} 25. exf4 {[%emt 0:00:38]} Nxf4 {[%emt 0:00:08]} 26. Nf3 {[%emt 0:02:56]} e3 {[%emt 0:02:42]} 27. Qxf5 {[%emt 0:03:09]} Rf8 {[%emt 0:01:33]} 28. Qg5 {[%emt 0:00:39]} Qc7 {[%emt 0:03:11]} 29. Be5 {[%emt 0:00:15]} Qd7 {[%emt 0:04:02]} 30. Rad1 {[%emt 0:00:17]} Ne2+ {[%emt 0:00:43]} 31. Bxe2 {[%emt 0:00:10]} 1-0